[Event "Hungarian Youth-ch U18 2022"]
[Site "Eger"]
[Date "2022.07.29"]
[Round "7.3"]
[White "Reviczki, Roland"]
[Black "Virag, Balint"]
[Result "0-1"]
[ECO "C00"]
[WhiteElo "2160"]
[BlackElo "2164"]
[Annotator "TA"]
[PlyCount "148"]
[EventDate "2022.07.21"]
[EventType "tourn"]
[EventCountry "HUN"]
[SourceTitle "playchess.com"]
[Source "ChessBase"]
[SourceQuality "1"]
[TimeControl "40/5400+30:1800+30"]

{[%evp 10,148,0,-18,0,-6,0,0,15,0,77,72,110,111,224,56,56,56,59,58,50,-152,-156,-149,-153,-151,-141,-139,-152,-198,-164,-209,-214,-222,-234,-224,-218,-246,-257,-292,-285,-394,-299,-319,0,0,0,0,0,0,0,0,0,0,0,0,0,0,0,0,0,0,0,0,0,0,0,0,0,0,0,0,0,-289,-139,-147,-68,-68,-82,-59,-55,-102,-98,-206,-140,-140,0,0,0,0,0,-212,-208,-207,-183,-232,-205,-186,-41,-11,0,0,0,0,0,-1553,-1553,-1531,-1493,-1220,-1345,-1118,-949,-1458,-1396,-892,-408,-408,-408,-860,-252,-29957,-1579,-1579,-1579,-1415,-1415,-1220,-1220,-1657,-444,-1203,-1158,-5687,-1151,-29967,-408,-29975,-29977,-29977,-29978]} 1. e4 {[%emt 0:00:38]} e6 {[%emt 0:02:16]} 2. d4 {[%emt 0:00:49]} d5 {[%emt 0:00:06]} 3. Bd3 {[%emt 0:00:12][%cal Bf1d3,Bd3e4,Be4f3][%mdl 32]} dxe4 {[%emt 0:00:06]} 4. Bxe4 {[%emt 0:00:04]} Nf6 {[%emt 0:00:07]} 5. Bf3 {[%emt 0:00:07]} c5 {[%emt 0:00:16]} 6. Ne2 {[%emt 0:00:07]} Nc6 {[%emt 0:01:11] C01: French: Exchange Variation.} 7. Be3 {[%emt 0:00:29]} cxd4 {[%emt 0:06:34]} 8. Nxd4 {[%emt 0:01:07]} Ne5 {[%emt 0:01:00] The position is equal.} 9. Nc3 {[%emt 0:01:27]} Nxf3+ {[%emt 0:08:06]} (9... Be7 $11 {remains equal.}) 10. Qxf3 $16 {[%emt 0:02:04]} (10. Nxf3 Qxd1+ 11. Rxd1 Bb4) (10. Nxf3 $6 Qxd1+ 11. Rxd1 Bb4 $11) 10... a6 {[%emt 0:04:43]} 11. O-O-O $1 {[%emt 0:01:58] [#]} Bd6 $146 {[%emt 0:07:17]} (11... Bd7) (11... Bd7 $16) ({Predecessor:} 11... Bd7 12. Qxb7 Qc8 13. Qxc8+ Rxc8 14. Rhe1 Bb4 15. Bd2 O-O 16. a3 Bxc3 17. Bxc3 Nd5 {1-0 (42) Garcia Ramos,D (2367)-Quispe Damian,F (1610) Chess.com INT 2020}) 12. Nf5 $2 {[%emt 0:16:44]} exf5 $14 {[%emt 0:00:21]} 13. Bc5 $1 {[%emt 0:00:37][%mdl 64] Pin} Ne4 {[%emt 0:26:44]} (13... Bxc5 14. Rxd8+ Kxd8 15. Na4) 14. Nxe4 {[%emt 0:06:49]} fxe4 {[%emt 0:27:03]} 15. Qxe4+ {[%emt 0:15:57]} (15. Qe3 O-O 16. Rxd6) (15. Qe3 $14 {was the only good move.} O-O 16. Rxd6) 15... Qe7 $1 $17 {[%emt 0:01:24]} 16. Rhe1 {[%emt 0:00:29]} Bxc5 {[%emt 0:01:53]} 17. Qa4+ {[%emt 0:00:11]} Kf8 {[%emt 0:09:29]} 18. Rxe7 {[%emt 0:01:30]} Bxe7 {[%emt 0:00:07]} 19. Qa5 {[%emt 0:04:01]} (19. Qe4) (19. Re1 $17 {keeps fighting.}) 19... g6 {[%emt 0:04:25]} 20. Qc7 {[%emt 0:06:29]} (20. Qe5 Rg8 21. a3) 20... Be6 {[%emt 0:02:57]} 21. f4 {[%emt 0:06:04]} (21. Qxb7 Bg5+ 22. Kb1 (22. f4 Bxf4+ 23. Kb1 Kg7) 22... Kg7) (21. Qxb7 Bg5+ 22. Kb1 (22. f4 $2 Bxf4+ 23. Kb1 Kg7 $19) 22... Kg7) 21... Re8 {[%emt 0:02:55]} (21... Bxa2 22. Rd7 Re8 23. b3) (21... Bxa2 22. Rd7 Re8 23. b3 $18) 22. Qxb7 {[%emt 0:08:30]} Kg7 {[%emt 0:00:20]} (22... Bxa2 23. Qc7) 23. Qf3 {[%emt 0:01:16]} h5 {[%emt 0:03:25][%cal Bh7h5,Bh5h4][%mdl 32] Against g4} (23... Bxa2 24. g4) (23... Bxa2 24. g4) 24. h3 {[%emt 0:00:59]} h4 {[%emt 0:00:06]} (24... Bxa2 25. g4) (24... Bxa2 $2 25. g4 $19) 25. Rd4 {[%emt 0:02:01]} Bf6 {[%emt 0:01:46] This bishop pair is nice.} (25... Bxa2 26. b3 Ba3+ 27. Kd1) 26. Rd6 {[%emt 0:02:02]} Bf5 $2 {[%emt 0:03:56]} (26... Bxa2 27. Rxf6 Kxf6 28. Qc3+ Kf5 29. Qa5+ Kxf4 30. Qxa2) (26... a5 27. Qa3 Rb8) ({Inferior is} 26... Bxa2 27. Rxf6 Kxf6 28. Qc3+ Kf5 29. Qa5+ Kxf4 30. Qxa2 $11) (26... a5 $19 {Hoping for ...Rd8.} 27. b3 Rd8 28. Rxd8 Rxd8) 27. Rxf6 $1 $11 {[%emt 0:04:24][%mdl 64] Remove Defender} Kxf6 {[%emt 0:01:32]} 28. Qc3+ {[%emt 0:00:12]} Ke7 {[%emt 0:02:05]} 29. Qa3+ {[%emt 0:06:31]} Ke6 {[%emt 0:02:29]} 30. Qxa6+ {[%emt 0:02:19]} Kd5 {[%emt 0:01:07]} (30... Ke7 $5 31. Qa3+ Kd7 $11) 31. Qb7+ {[%emt 0:02:18]} Ke6 {[%emt 0:01:56]} 32. Qc6+ {[%emt 0:00:10]} Ke7 {[%emt 0:00:07]} 33. Qc5+ {[%emt 0:00:17]} Kf6 {[%emt 0:01:06]} 34. Qd4+ {[%emt 0:00:16]} Ke7 {[%emt 0:00:06]} 35. Qb4+ {[%emt 0:04:40]} Kf6 {[%emt 0:00:19]} 36. Qc3+ {[%emt 0:00:07]} Ke7 {[%emt 0:00:20]} 37. Qa3+ {[%emt 0:00:19]} Kf6 {[%emt 0:00:45] And now ...Kg7 would win.} 38. Qc3+ {[%emt 0:00:04]} Ke7 {[%emt 0:00:14]} 39. Qb4+ {[%emt 0:00:22]} Kf6 {[%emt 0:01:30]} 40. Qd4+ {[%emt 0:00:00]} Ke7 {[%emt 0:00:00]} 41. c4 $2 {[%emt 0:18:15][%mdl 8192]} (41. Qc5+ $11 {and White has nothing to worry.} Kd7 42. Qd5+ Ke7 43. Qe5+ Kd8 44. Qf6+ Kc8 45. Qc6+ Kb8 46. Qb5+ Ka8 47. Qa4+ Kb8 48. Qb5+ Ka8 49. Qc6+ Kb8 50. Qd6+ Ka8 51. Qd5+ Kb8 52. Qb5+) 41... Rc8 {[%emt 0:04:26]} (41... f6 $1 $19 {is more deadly. Threatens to win with ...Rd8.} 42. b3 Rd8) 42. b3 $17 {[%emt 0:01:14]} Rh5 {[%emt 0:01:36]} (42... f6 $1 $17 {...Rcd8 is the strong threat.} 43. Qa7+ Kf8) 43. a4 $15 {[%emt 0:03:29]} Be6 {[%emt 0:01:16]} 44. Kb2 {[%emt 0:03:25]} Kf8 {[%emt 0:01:04]} 45. Ka3 {[%emt 0:01:02]} (45. f5 $15 Bxf5 46. a5) 45... Kg8 $17 {[%emt 0:00:29]} 46. Qd6 {[%emt 0:01:49]} (46. Qf6 $17 {was called for.}) 46... Rhc5 $19 {[%emt 0:00:44]} 47. Qe7 {[%emt 0:01:04]} Bxc4 {[%emt 0:02:50]} 48. bxc4 $11 {[%emt 0:00:37]} Rxc4 $17 {[%emt 0:00:01][%mdl 4096] Endgame KQ-KRR} 49. a5 {[%emt 0:05:41]} (49. Qxh4 Ra8 50. Kb3 Rcxa4 $17) 49... Ra8 {[%emt 0:03:28]} 50. Kb3 $2 {[%emt 0:01:59]} (50. f5 $1 $11 Rxa5+ 51. Kb3) 50... Rxf4 $19 {[%emt 0:00:43]} 51. Qb7 {[%emt 0:01:29]} Re8 {[%emt 0:00:56]} 52. Qb6 {[%emt 0:00:30]} (52. a6 {is a better defense.} Re3+ 53. Kc2 Rf2+ 54. Kd1) 52... Rf1 {[%emt 0:00:55]} 53. Kb2 {[%emt 0:00:59] Prevents Rb1+.} Re2+ {[%emt 0:00:27]} ({Better is} 53... Rfe1 $1 $19 {aiming for ...R1e2+.} 54. a6 R1e2+ 55. Kb3 Kg7) 54. Kc3 $15 {[%emt 0:00:05]} Rxg2 {[%emt 0:05:40]} 55. Qd8+ {[%emt 0:00:25]} Kg7 {[%emt 0:00:14]} 56. Qd4+ {[%emt 0:00:08]} f6 {[%emt 0:05:02] White must now prevent ...Rc1+.} 57. Qxh4 $2 {[%emt 0:00:14][%mdl 8192]} ({Reject} 57. Qd7+ Kh6 58. a6 Rf4) (57. a6 $11) 57... Rf3+ $19 {[%emt 0:03:05]} 58. Kb4 {[%emt 0:00:18]} Rgf2 {[%emt 0:01:25]} 59. Kb5 {[%emt 0:00:16] [#]} Rf5+ $1 {[%emt 0:00:44]} 60. Kc6 {[%emt 0:02:07] [#]} Rc2+ $1 {[%emt 0:00:46]} ({Don't go for} 60... Ra2 $2 61. Qb4 $17) 61. Kd6 {[%emt 0:00:50]} Rxa5 {[%emt 0:01:52]} 62. Qb4 {[%emt 0:00:10]} Ra7 {[%emt 0:01:41]} (62... Ra6+ $142 63. Kd5 Ra7) 63. h4 {[%emt 0:00:22]} Rcc7 {[%emt 0:00:33]} 64. Qg4 {[%emt 0:00:52] Inhibits Rd7+.} (64. h5 $142 Rd7+ 65. Ke6) 64... Rd7+ $2 {[%emt 0:00:20]} (64... Rf7 {Strongly threatening ...Ra6+.} 65. Kc6 Ra5) 65. Ke6 $2 {[%emt 0:00:06]} (65. Kc6 $19) 65... Re7+ {[%emt 0:00:38]} (65... Rd3 $142 66. h5 Ra6+ 67. Ke7 f5 68. Qh4 Re3+ 69. Kd7 Re4 70. Qf2 Ree6 71. hxg6 Rf6 72. Qe3 f4 73. Qe5 Ra7+ 74. Kd8 f3 75. Kc8 Ra8+ 76. Kb7 Raf8 77. Qe7+ Kxg6 78. Qe1 f2 79. Qf1 R8f7+ 80. Ka8 Kg7 81. Qg2+ Rg6 82. Qf1 Kg8 83. Qd3 Rgg7 84. Qd8+ Rf8 85. Qxf8+ Kxf8 86. Kb8 Kg8 87. Kc8 f1=Q 88. Kd8 Qf8#) 66. Kd6 {[%emt 0:00:05]} Re5 {[%emt 0:00:13]} 67. Qc4 {[%emt 0:00:18] Inhibits Ra6+.} Rae7 {[%emt 0:00:42][%cal Oe7e6]} 68. Qc3 {[%emt 0:00:56]} R7e6+ {[%emt 0:01:55]} 69. Kd7 {[%emt 0:00:07]} Kh6 {[%emt 0:02:43]} (69... Ra6 $142 {( -> ...Ree6)} 70. Qb4 Rae6) 70. Qf3 {[%emt 0:00:26]} (70. Qb3 $142) 70... Ra6 {[%emt 0:00:34]} 71. Qf4+ {[%emt 0:01:17]} Kg7 {[%emt 0:00:03]} 72. Qd4 {[%emt 0:00:13]} Raa5 {[%emt 0:00:53]} (72... Ree6 $142 73. Qf4 Rac6 74. Qg3 Kf7 75. Qb3 f5 76. Qa2 f4 77. Qb3 Kg7 78. h5 Rf6 79. hxg6 f3 80. Qa3 Rcd6+ 81. Qxd6 Rxd6+ 82. Kxd6 f2 83. Kd5 f1=Q 84. Kd4 Kxg6 85. Kc3 Qb5 86. Kd4 Qb4+ 87. Ke3 Kf5 88. Kd3 Kf4 89. Ke2 Qd4 90. Kf1 Kf3 91. Ke1 Qd8 92. Kf1 Qd1#) 73. Qf4 {[%emt 0:00:32]} (73. Kc7 $19) 73... Rac5 {[%emt 0:00:46]} 74. Kd6 {[%emt 0:00:14]} Kf7 {[%emt 0:00:52] Quite a comeback for Black.  Weighted Error Value: White=0.46/Black=0.25 (precise)} 0-1

[Event "Hungarian Youth-ch U18 2022"]
[Site "Eger"]
[Date "2022.07.29"]
[Round "7.4"]
[White "Kiss, Eniko"]
[Black "Toth, Nikoletta"]
[Result "1/2-1/2"]
[ECO "A13"]
[WhiteElo "1646"]
[BlackElo "1914"]
[Annotator "TA"]
[PlyCount "57"]
[EventDate "2022.07.21"]
[EventType "tourn"]
[EventCountry "HUN"]
[SourceTitle "playchess.com"]
[Source "ChessBase"]
[SourceQuality "1"]
[TimeControl "40/5400+30:1800+30"]

{[%evp 11,57,13,20,19,30,25,24,8,10,1,3,4,6,5,18,11,8,6,16,0,0,0,0,0,0,-22,0,-4,0,0,0,0,0,0,0,-11,1,-29,0,-23,50,53,73,77,61,55,48,52]} 1. c4 {[%emt 0:04:55]} e6 {[%emt 0:00:35]} 2. e4 {[%emt 0:00:06]} d5 {[%emt 0:00:03]} 3. exd5 {[%emt 0:00:03]} exd5 {[%emt 0:00:04]} 4. d4 {[%emt 0:00:03]} Nf6 {[%emt 0:00:14]} 5. Nc3 {[%emt 0:00:11]} c6 {[%emt 0:00:05]} 6. Nf3 {[%emt 0:00:11]} Be7 {[%emt 0:00:18]} 7. Be2 {[%emt 0:00:33] C01: French: Exchange Variation.} Bg4 {[%emt 0:03:19]} 8. Qb3 {[%emt 0:03:02]} Qb6 {[%emt 0:04:23]} 9. Qxb6 {[%emt 0:03:05] White has an edge.} (9. h3 {is interesting.} Bxf3 10. Bxf3 dxc4 11. Qxc4 O-O 12. O-O) 9... axb6 {[%emt 0:00:07]} 10. cxd5 {[%emt 0:05:44] [#]} Nxd5 $146 {[%emt 0:03:51]} ({Predecessor:} 10... cxd5 11. Bg5 Nbd7 12. O-O O-O 13. h3 Be6 14. Ne5 Bb4 15. Nxd7 Nxd7 16. Bf3 h6 {1-0 (34) Sharovatova,A (2244)-Kharitonova Orsk 2000}) 11. Nxd5 {[%emt 0:09:00]} cxd5 {[%emt 0:00:19]} 12. h3 {[%emt 0:36:09]} Bf5 {[%emt 0:12:12]} 13. O-O {[%emt 0:02:37]} O-O {[%emt 0:00:22]} 14. Bf4 {[%emt 0:00:48]} Rc8 {[%emt 0:02:02]} 15. Rfc1 {[%emt 0:00:32]} Nc6 {[%emt 0:00:11]} 16. Bd2 {[%emt 0:05:56]} Be4 {[%emt 0:11:26]} 17. Bc3 {[%emt 0:03:32]} Bf6 {[%emt 0:12:48]} 18. Rd1 {[%emt 0:01:26]} Rd8 {[%emt 0:01:28]} 19. Ne1 {[%emt 0:06:07][%cal Bf3e1,Be1g2,Bg2f4][%mdl 32]} Re8 {[%emt 0:01:55][%cal Oe4g2]} 20. Bb5 {[%emt 0:06:08]} Re7 {[%emt 0:03:32]} 21. f3 {[%emt 0:02:27]} Bf5 {[%emt 0:01:47]} 22. g4 {[%emt 0:02:02]} Bd7 {[%emt 0:00:09][%cal Oc6d4]} 23. a4 {[%emt 0:00:09]} (23. Nc2) 23... h5 {[%emt 0:30:42]} 24. Ng2 {[%emt 0:02:48]} hxg4 {[%emt 0:01:17]} (24... Nxd4 $5 25. Bxd4 Bxd4+ 26. Rxd4 Bxb5 $15) 25. hxg4 {[%emt 0:00:19] [#]} (25. Nf4 $5 {[%cal Rf4d5]}) 25... Nb8 {[%emt 0:05:15]} (25... Nxd4 $1 $11 26. Bxd4 Bxd4+ 27. Rxd4 Bxb5) 26. Bb4 $14 {[%emt 0:03:12]} Re8 {[%emt 0:00:50][%cal Of6d4]} 27. Bxd7 {[%emt 0:00:39]} Nxd7 {[%emt 0:00:12]} 28. Nf4 {[%emt 0:00:05]} b5 {[%emt 0:00:47]} 29. a5 {[%emt 0:01:38] Weighted Error Value: White=0.06 (flawless) /Black=0.11 (very precise)} 1/2-1/2

[Event "Hungarian Youth-ch U18 2022"]
[Site "Eger"]
[Date "2022.07.29"]
[Round "7.5"]
[White "Ivan, Reka Gyongyver"]
[Black "Koltai, Dora"]
[Result "1/2-1/2"]
[ECO "D00"]
[WhiteElo "1877"]
[BlackElo "1764"]
[Annotator "NA RC COMBH"]
[PlyCount "96"]
[EventDate "2022.07.21"]
[EventType "tourn"]
[EventCountry "HUN"]
[SourceTitle "playchess.com"]
[Source "ChessBase"]
[SourceQuality "1"]
[TimeControl "40/5400+30:1800+30"]

1. d4 {[%emt 0:00:34]} d5 {[%emt 0:00:42]} 2. Bf4 {[%emt 0:00:22]} Nf6 {[%emt 0:00:17]} 3. e3 {[%emt 0:00:14]} c5 4. c3 {[%emt 0:00:12]} e6 {[%emt 0:00:23]} 5. Nd2 {[%emt 0:00:21]} Bd6 {[%emt 0:00:25]} 6. Bb5+ {[%emt 0:00:34]} Nc6 {[%emt 0:03:34]} 7. Bxc6+ {[%emt 0:00:33]} bxc6 {[%emt 0:00:07]} 8. Bxd6 {[%emt 0:00:09]} Qxd6 {[%emt 0:00:05]} 9. Qa4 {[%emt 0:00:14]} O-O {[%emt 0:04:24]} 10. Ngf3 {[%emt 0:00:59]} cxd4 {[%emt 0:06:45]} 11. cxd4 {[%emt 0:06:00]} Nd7 {[%emt 0:14:36]} ({Black should try} 11... c5 $11) 12. Rc1 {[%emt 0:08:30]} Bb7 {[%emt 0:14:58]} 13. O-O Rfc8 14. Nb3 {[%emt 0:08:11]} (14. Rc3 $14 {might be stronger.}) 14... a5 $1 {[%emt 0:09:25]} 15. Nc5 {[%emt 0:03:36]} ({But not} 15. Nxa5 Ba6 16. Rxc6 Rxc6 17. Nxc6 Nb6 $17) 15... Ba6 {[%emt 0:04:05]} 16. Rfe1 {[%emt 0:02:13]} Bb5 {[%emt 0:02:27]} 17. Qc2 {[%emt 0:01:29]} a4 {[%emt 0:01:56]} 18. Nxd7 {[%emt 0:03:23]} Qxd7 {[%emt 0:00:09]} 19. Ne5 {[%emt 0:00:17]} Qc7 {[%emt 0:02:51]} 20. f4 {[%emt 0:08:43]} f6 {[%emt 0:08:06]} 21. Nf3 {[%emt 0:04:38]} Ra5 {[%emt 0:03:23]} 22. Qd2 Bc4 {[%emt 0:03:53]} 23. a3 {[%emt 0:04:18]} c5 {[%emt 0:03:02]} 24. Rc3 {[%emt 0:02:41]} (24. e4 $11 {feels stronger.}) 24... Qb6 {[%emt 0:01:43]} 25. Qc1 {[%emt 0:02:20]} Rb5 {[%emt 0:05:47]} 26. dxc5 {[%emt 0:06:51]} Rbxc5 {[%emt 0:02:24]} 27. Nd4 {[%emt 0:04:55]} Bb3 {[%emt 0:05:57]} ({Black should try} 27... e5 $17 28. fxe5 fxe5) 28. Qd2 {[%emt 0:03:17]} (28. Rxc5 $11 {was the only way to keep the balance.} Rxc5 29. Qd2) 28... Rxc3 {[%emt 0:00:32]} 29. bxc3 $17 {[%emt 0:00:06]} e5 {[%emt 0:02:07]} 30. fxe5 {[%emt 0:01:04]} fxe5 {[%emt 0:00:10]} 31. Nf3 {[%emt 0:00:39]} Re8 {[%emt 0:02:05]} 32. Qb2 {[%emt 0:03:13]} Qc5 {[%emt 0:00:26]} 33. Kh1 {[%emt 0:00:36]} Qc6 {[%emt 0:02:27]} 34. Rc1 {[%emt 0:02:59]} Qf6 {[%emt 0:01:24]} 35. Qd2 {[%emt 0:04:36]} Qe7 {[%emt 0:00:27]} 36. Ra1 {[%emt 0:00:22]} Qc5 {[%emt 0:00:22]} 37. h3 {[%emt 0:01:10]} h6 {[%emt 0:00:47]} 38. Qc1 {[%emt 0:01:41]} Qc7 {[%emt 0:00:25]} 39. Qe1 {[%emt 0:00:58]} Qc5 {[%emt 0:00:26]} 40. Qd2 {[%emt 0:00:00]} Qe7 {[%emt 0:00:00]} 41. Qf2 {[%emt 0:02:49]} Rc8 {[%emt 0:08:13]} 42. Qd2 {[%emt 0:04:54]} Qc7 {[%emt 0:04:51]} 43. Rc1 {[%emt 0:00:20]} Rf8 {[%emt 0:03:20]} 44. Qe1 {[%emt 0:03:33]} Qd6 {[%emt 0:01:45]} 45. Ra1 {[%emt 0:00:16]} Qf6 {[%emt 0:03:14]} 46. Qg3 {[%emt 0:02:05]} e4 {[%emt 0:02:35]} 47. Nd4 {[%emt 0:01:37]} Rc8 {[%emt 0:06:48]} 48. Qe1 {[%emt 0:02:27]} Qb6 {[%emt 0:01:50]} 1/2-1/2

[Event "Hungarian Youth-ch U18 2022"]
[Site "Eger"]
[Date "2022.07.29"]
[Round "7.6"]
[White "Sulyok, Eszter"]
[Black "Somogyi, Barbara"]
[Result "1/2-1/2"]
[ECO "D02"]
[WhiteElo "2091"]
[BlackElo "1682"]
[Annotator "TA"]
[PlyCount "142"]
[EventDate "2022.07.21"]
[EventType "tourn"]
[EventCountry "HUN"]
[SourceTitle "playchess.com"]
[Source "ChessBase"]
[SourceQuality "1"]
[TimeControl "40/5400+30:1800+30"]

{[%evp 15,141,29,39,0,40,21,142,141,144,105,122,119,144,150,151,148,174,170,156,149,172,110,112,118,118,126,168,167,182,151,725,423,421,397,1181,1068,940,274,260,264,338,212,457,457,505,51,66,50,89,14,12,1,10,6,115,0,12,9,61,61,60,57,124,124,117,85,93,45,80,69,8,0,11,0,0,0,0,0,0,0,0,0,0,0,0,0,0,-8,0,0,0,0,0,0,0,0,0,0,0,0,0,0,0,0,0,0,0,0,0,0,0,0,0,0,0,0,0,0,0,0,0,0,0,0,0,0,0,0]} 1. Nf3 {[%emt 0:00:45]} d5 {[%emt 0:00:38]} 2. d4 {[%emt 0:00:16]} Nf6 {[%emt 0:00:08]} 3. c4 {[%emt 0:00:29]} e6 {[%emt 0:00:08]} 4. g3 {[%emt 0:00:45]} Bd6 {[%emt 0:00:52]} 5. Bg2 {[%emt 0:00:55]} O-O {[%emt 0:01:07]} 6. O-O {[%emt 0:01:50]} Nbd7 {[%emt 0:00:38]} 7. Nc3 {[%emt 0:02:16]} c6 {[%emt 0:01:05]} 8. b3 {[%emt 0:07:06]} b6 {[%emt 0:04:46]} 9. cxd5 {[%emt 0:04:02] E01: Catalan: Early deviations.} Nxd5 {[%emt 0:02:47] [#]} 10. Ne4 $146 {[%emt 0:05:20]} ({Predecessor:} 10. Bb2 Ba6 11. Nd2 Rc8 12. Re1 Nxc3 13. Bxc3 c5 14. Ne4 Be7 15. e3 f5 16. Nd2 cxd4 17. Bxd4 {0-1 (63) Perera Gonzalez,P (2230)-Vega Gutierrez,S (2282) Santa Cruz de Tenerife 2006}) 10... N7f6 {[%emt 0:05:25]} (10... Be7) (10... Be7 $11 {remains equal.}) 11. Nxd6 $16 {[%emt 0:05:00] White is clearly better.} Qxd6 {[%emt 0:00:19]} 12. Bb2 {[%emt 0:02:17]} Ba6 {[%emt 0:12:15]} 13. Re1 {[%emt 0:10:28]} Qc7 {[%emt 0:18:17]} 14. Rc1 {[%emt 0:07:01]} Rac8 {[%emt 0:04:48]} 15. Ne5 {[%emt 0:05:49] Hoping for e4.} Bb7 {[%emt 0:02:53]} 16. e4 {[%emt 0:06:25]} Ne7 {[%emt 0:01:57]} 17. b4 {[%emt 0:03:56] White is more active.} Nd7 {[%emt 0:03:21]} 18. Nxc6 {[%emt 0:10:57]} Nxc6 {[%emt 0:02:19]} 19. b5 {[%emt 0:05:49]} Qd8 {[%emt 0:03:01] White must now prevent ...Na5.} 20. bxc6 {[%emt 0:01:12]} Bxc6 {[%emt 0:02:02]} 21. d5 {[%emt 0:02:16]} exd5 {[%emt 0:00:40]} 22. exd5 $40 {[%emt 0:00:14][%mdl 128] Black is in trouble.} Ba8 {[%emt 0:01:57]} (22... Bb7 23. Rxc8 Bxc8) (22... Bb7 $16 23. Rxc8 Bxc8) 23. Rxc8 {[%emt 0:01:23]} Qxc8 {[%emt 0:00:41]} 24. Re7 {[%emt 0:03:10] aiming for Bh3.} Nc5 $2 {[%emt 0:08:23]} (24... Nf6 25. Bxf6 (25. Rxa7 Qf5) 25... gxf6) (24... Nf6 25. Bxf6 (25. Rxa7 Qf5 $18) 25... gxf6) 25. Qh5 $18 {[%emt 0:07:18]} h6 {[%emt 0:06:52] Against Qg5} 26. Qe5 $2 {[%emt 0:02:50]} (26. Bh3 Qd8 27. Qg4 $1) 26... Qg4 {[%emt 0:04:28]} 27. h3 $1 {[%emt 0:01:53]} ({Worse is} 27. Rxa7 Nd3 28. f3 Qg6 $17) 27... Qg6 {[%emt 0:02:13]} 28. Qd4 {[%emt 0:00:07]} (28. Rxa7 Nd3 29. Qe2 Nxb2 $16) 28... Rd8 $2 {[%emt 0:03:35]} (28... h5 29. Rxa7 h4) 29. Rxa7 {[%emt 0:00:50]} Qg5 {[%emt 0:01:33]} 30. d6 {[%emt 0:02:09]} ({White has to play} 30. h4 $18 Qg6 31. a4) 30... Bxg2 {[%emt 0:00:36]} 31. Kxg2 {[%emt 0:00:02]} Qg6 {[%emt 0:00:54] [#]} 32. d7 {[%emt 0:00:45]} (32. Qe5 $1 $16) 32... Qc6+ $1 $11 {[%emt 0:01:25]} 33. Kh2 {[%emt 0:00:22][%csl Gb2][%cal Rd4g7]} Ne6 {[%emt 0:01:38]} 34. Qd2 {[%emt 0:00:33]} Nc5 {[%emt 0:01:33] [#]} (34... b5 $11) 35. Qd4 {[%emt 0:00:26]} (35. Qc3 $1 $16 {[%csl Gb2][%cal Rc3g7]} f6 36. Ba3 (36. Qc4+ Kh8 $14)) 35... Ne6 {[%emt 0:00:28]} 36. Qc3 {[%emt 0:00:28]} Qxc3 {[%emt 0:00:27]} ({Black should try} 36... Qd5 $11) 37. Bxc3 {[%emt 0:00:05][%mdl 4096] Endgame KRB-KRN} Nc5 {[%emt 0:00:30]} 38. Bd4 {[%emt 0:01:14] And now Bxc5 would win.} Rxd7 {[%emt 0:00:31]} ({Black should play} 38... Nxd7 $14 39. Be3 Nc5) 39. Rxd7 $16 {[%emt 0:00:12]} Nxd7 $14 {[%emt 0:00:01] KB-KN} 40. Kg2 {[%emt 0:00:00]} f5 {[%emt 0:00:00]} 41. Kf3 {[%emt 0:01:06]} (41. h4 $16) 41... Kf7 {[%emt 0:03:17]} 42. g4 {[%emt 0:04:47]} fxg4+ {[%emt 0:01:48]} 43. hxg4 {[%emt 0:01:16] The position is equal.} g6 {[%emt 0:02:01]} 44. Kf4 {[%emt 0:02:12]} b5 {[%emt 0:04:07]} 45. a3 {[%emt 0:02:43]} Nb8 {[%emt 0:04:00]} 46. f3 {[%emt 0:03:52]} Nc6 {[%emt 0:01:12]} 47. Bc3 {[%emt 0:00:11]} Ke6 {[%emt 0:01:30]} 48. Bg7 {[%emt 0:02:59]} h5 {[%emt 0:05:23]} 49. gxh5 {[%emt 0:01:05]} gxh5 {[%emt 0:00:08]} 50. Kg5 {[%emt 0:00:08]} b4 {[%emt 0:01:41][%cal Bb5b4,Bb4b3][%mdl 32]} 51. a4 {[%emt 0:07:38]} b3 {[%emt 0:00:47][%cal Oh5h4] ...h4! is the strong threat.} 52. Bc3 {[%emt 0:01:46]} Na5 {[%emt 0:01:49]} 53. f4 {[%emt 0:00:31][%cal Bf3f4,Bf4f5][%mdl 32]} Nc4 {[%emt 0:03:43]} 54. f5+ {[%emt 0:00:36]} Kf7 {[%emt 0:00:48]} 55. Kxh5 {[%emt 0:00:24]} b2 {[%emt 0:02:58]} 56. Bxb2 {[%emt 0:00:04]} Nxb2 $11 {[%emt 0:00:05] KN-KPP} 57. a5 {[%emt 0:00:04]} Nc4 {[%emt 0:00:08]} 58. a6 {[%emt 0:00:06]} Kf6 {[%emt 0:01:24]} 59. a7 {[%emt 0:00:06]} Nb6 {[%emt 0:00:09]} 60. Kg4 {[%emt 0:00:03]} Na8 {[%emt 0:01:09]} (60... Ke5 61. Kg5 Na8 62. Kg6 Kd4 63. f6 Nb6 64. f7 Nd7 65. Kg5) 61. Kf4 {[%emt 0:00:07]} Nc7 {[%emt 0:01:28]} 62. Ke4 {[%emt 0:00:11]} Na8 {[%emt 0:01:18]} 63. Kf4 $1 {[%emt 0:01:47]} Nc7 {[%emt 0:00:30]} 64. Ke4 {[%emt 0:01:01]} Na8 {[%emt 0:00:16]} 65. Kd5 {[%emt 0:00:06]} Kxf5 {[%emt 0:00:23] KN-KP} 66. Kd6 {[%emt 0:00:11]} Kf6 {[%emt 0:00:41]} 67. Kd7 {[%emt 0:00:11]} Kf7 {[%emt 0:00:51]} 68. Kd8 {[%emt 0:00:32]} Kf8 {[%emt 0:01:19]} 69. Kc8 {[%emt 0:00:05] White threatens Kb7 and mate.} Ke8 {[%emt 0:00:11]} 70. Kb8 {[%emt 0:00:03]} Kd8 {[%emt 0:00:12]} 71. Kxa8 {[%emt 0:00:05] Intending Kb7 and mate.} Kc8 {[%emt 0:00:05] Black defended with fortune.  Weighted Error Value: White=0.42/Black=0.26 (precise)} 1/2-1/2